Cogmind - Beta 15 *** ADVENTURER MODE // 2025.05.06 @ 17:25:51 Player: Olexender Result: Destroyed by H-66 Slayer with Gauss Rifle Performance ------------- Evolutions (4) 2000 Regions Visited (4) 800 Robots Destroyed (11) 55 Value Destroyed (570) 570 Prototype IDs (0) 0 Alien Tech Used (0) 0 Bonus (570) 570 TOTAL SCORE: 3995 Bonus ------- Pacifist 270 Registered with UFD 300 Cogmind --------- Core Integrity 0/850 Matter 300/300 Energy 99/100 System Corruption 2% Temperature Cool (0) Movement Core (100) Ox1 Location -6/Factory Parts ------- > --- POWER (2) -------- (None) > --- PROPULSION (5) --- (None) > --- UTILITY (5) ------ Structural Scanner > --- WEAPON (3) ------- Maul > --- INVENTORY (5) ---- Advanced Heat Sink Energy Well (350) Improved Medium Armor Plating Plasma Cannon Heavy Flak Cannon Peak State ------------ > --- POWER ------------ Ion Engine Ion Engine > --- PROPULSION ------- Aluminum Leg Aluminum Leg Aluminum Leg Aluminum Leg > --- UTILITY ---------- Advanced Heat Sink Small Storage Unit IFF Parser System Shield > --- WEAPON ----------- Thermic Laser Assault Rifle Advanced Assault Cannon > --- INVENTORY -------- Energy Well Energy Well Matter Compressor Matter Compressor Medium Laser Assault Rifle CPS Tube [Rating: 32] Favorites ----------- Power Ion Engine Engine Ion Engine Propulsion Aluminum Leg Leg Aluminum Leg Utility Small Storage Unit Device Advanced Heat Sink Storage Small Storage Unit Hackware System Shield Protection Improved Medium Armor Plating Weapon CPS Tube Energy Gun Thermic Laser Energy Cannon Plasma Cannon Ballistic Gun Assault Rifle Ballistic Cannon Advanced Assault Cannon Special Weapon CPS Tube Impact Weapon Maul Build | -11 -10 -10 -9 -6 ------- Run | Yrd Mat Sub Scr Fac Slots Evolved 8 | . . . . 8 Power 1 | . . . . 1 Propulsion 3 | . . . . 3 Utility 3 | . . . . 3 Weapon 1 | . . . . 1 Parts Attached 25 | 6 2 . 1 16 Power 5 | 1 1 . . 3 Engine 5 | 1 1 . . 3 Core . | . . . . . Reactor . | . . . . . Propulsion 4 | 2 . . . 2 Treads . | . . . . . Leg 4 | 2 . . . 2 Wheel . | . . . . . Hover . | . . . . . Flight . | . . . . . Utility 6 | 1 . . . 5 Device 3 | . . . . 3 Storage 1 | 1 . . . . Processor . | . . . . . Hackware 1 | . . . . 1 Protection 1 | . . . . 1 Artifact . | . . . . . Weapon 10 | 2 1 . 1 6 Energy Gun 2 | . 1 . . 1 Energy Cannon 1 | . . . . 1 Ballistic Gun 2 | 2 . . . . Ballistic Cannon 2 | . . . . 2 Launcher . | . . . . . Special Weapon 2 | . . . 1 1 Impact Weapon 1 | . . . . 1 Slashing Weapon . | . . . . . Piercing Weapon . | . . . . . Special Melee Weapon . | . . . . . Unidentified Prototypes . | . . . . . Parts Lost 18 | . . . . 18 Power 4 | . . . . 4 Propulsion 4 | . . . . 4 Utility 4 | . . . . 4 Weapon 6 | . . . . 6 Highest Loss Streak 11 | . . . . 11 To Critical Strikes . | . . . . . Average Backups 6 | 2 3 5 7 6 Power . | . 1 1 1 . Propulsion 1 | . 1 2 2 . Utility 1 | . . 1 1 3 Weapon 2 | . . 1 2 1 Tool/Special . | . . . . . Unused Backups 8 | . 1 . . 7 Power 1 | . 1 . . . Propulsion . | . . . . . Utility 7 | . . . . 7 Weapon . | . . . . . Tool/Special . | . . . . . Average Slot Usage (%) 61 | . 85 85 64 50 Engine 12 | . 14 14 14 9 Leg 23 | . 28 28 28 14 Device 1 | . . . . 5 Storage 10 | . 14 14 14 5 Hackware 1 | . . . . 3 Energy Gun 2 | . 6 14 . 4 Ballistic Gun 2 | . 21 14 . 1 Special Weapon 4 | . . . 7 1 Peak Build Rating 32 | 6 6 6 8 32 Average Rating 10 | 3 6 6 6 18 On Entrance 5 | . 6 6 6 8 Naked Turns 20 | . . . . 20 Heaviest Build 30 | 12 14 14 14 30 Greatest Support 40 | 20 20 20 20 40 Greatest Overweight (x) 3 | . . . . 3 Average Overweight (x) . | . . . . . Largest Inventory Capacity 8 | 8 8 8 8 8 Average Capacity 7 | 6 8 8 8 7 Most Carried 8 | 5 5 5 8 8 Average Carried 6 | 2 3 5 7 6 Final Capacity 8 | 8 8 8 8 5 Final Carried 8 | 1 5 5 8 5 Class Distribution -------------------- 77% | Mutant 13% | Hacker-Mutant 8% | Hacker-Skirmisher Dominant Class ---------------- Mutant | -10/Materials Mutant | -10/Subcaves Mutant | -9/Scraptown Hacker-Mutant | -6/Factory Resources | -11 -10 -10 -9 -6 ----------- Run | Yrd Mat Sub Scr Fac Matter Collected 702 | 233 47 . . 422 Remotely . | . . . . . Salvage Created 421 | . . . . 421 Parts 19 | . . . . 19 Haulers Intercepted . | . . . . . Recyclers Shooed . | . . . . . Parts Field Recycled . | . . . . . Retrieved Matter . | . . . . . Parts Self-Destructed . | . . . . . Prevented . | . . . . . Kills | -11 -10 -10 -9 -6 ------- Run | Yrd Mat Sub Scr Fac Combat Hostiles Destroyed 10 | . . . . 10 Melee 1 | . . . . 1 Guns 2 | . . . . 2 Cannons 5 | . . . . 5 AOE 2 | . . . . 2 Classes Destroyed 4 | . . . . 4 Builder 1 | . . . . 1 Grunt 7 | . . . . 7 Brawler 1 | . . . . 1 Programmer 2 | . . . . 2 Best Kill Streak 4 | . . . . 4 Combat Bots Only 4 | . . . . 4 Max Kills in Single Turn 2 | . . . . 2 Gunslinging . | . . . . . Exploded 2 | . . . . 2 Melee 1 | . . . . 1 Uniques/NPCs Destroyed . | . . . . . Combat | -11 -10 -10 -9 -6 -------- Run | Yrd Mat Sub Scr Fac Hostile Shots Fired 195 | . . . . 195 Missed 44 | . . . . 44 Hits 151 | . . . . 151 Melee 2 | . . . . 2 Projectile 149 | . . . . 149 Critical Strikes 9 | . . . . 9 Part Disruptions 1 | . . . . 1 Damage Taken 2273 | . . . . 2273 Core 859 | . . . . 859 Absorbed by Shields . | . . . . . Ignored by Resistances 627 | . . . . 627 Core Remaining (%) 100 | 100 . . 100 . Volleys Fired 47 | . . . . 47 Largest 3 | . . . . 3 Hottest 145 | . . . . 145 Shots Fired 87 | . . . . 87 Gun 43 | . . . . 43 Cannon 42 | . . . . 42 Launcher . | . . . . . Special 2 | . . . . 2 Kinetic 44 | . . . . 44 Thermal 41 | . . . . 41 Explosive . | . . . . . Electromagnetic . | . . . . . Robot Hit Streak 15 | . . . . 15 Robot Miss Streak 2 | . . . . 2 Penetration Max . | . . . . . Secondary Targets . | . . . . . Shots Hit Robots 64 | . . . . 64 Core Hits 26 | . . . . 26 Critical Kills . | . . . . . Critical Parts Destroyed 1 | . . . . 1 Critical Strikes 4 | . . . . 4 Burn 3 | . . . . 3 Destroy 1 | . . . . 1 Melee Attacks 5 | . . . . 5 Impact 5 | . . . . 5 Slashing . | . . . . . Piercing . | . . . . . Sneak Attacks . | . . . . . Combat Hostiles . | . . . . . Follow-up Attacks . | . . . . . Damage Inflicted 1755 | . . . . 1755 Guns 530 | . . . . 530 Cannons 783 | . . . . 783 Explosions 323 | . . . . 323 Melee 119 | . . . . 119 Ramming . | . . . . . Kinetic 771 | . . . . 771 Thermal 724 | . . . . 724 Explosive 141 | . . . . 141 Electromagnetic . | . . . . . Impact 119 | . . . . 119 Slashing . | . . . . . Piercing . | . . . . . Highest Corruption 2 | . . . . 2 Average Corruption 1 | . . . . 1 Corruption Purged . | . . . . . Corruption Blocked . | . . . . . Effects 6 | . . . . 6 Message Errors 1 | . . . . 1 Matter Fused 1 | . . . . 1 Heat Flow Errors 1 | . . . . 1 Energy Discharges 1 | . . . . 1 Data Loss (minor) 1 | . . . . 1 Weapon Failures 1 | . . . . 1 Overload Shots . | . . . . . Overflow Damage 35 | . . . . 35 Projectiles 12 | . . . . 12 Explosions 23 | . . . . 23 Melee . | . . . . . Knockbacks 8 | . . . . 8 Impact . | . . . . . Kinetic 7 | . . . . 7 Secondary 1 | . . . . 1 Self-Inflicted Damage 79 | . . . . 79 Shots 3 | . . . . 3 Rammed . | . . . . . Targets Rammed . | . . . . . Kicked . | . . . . . Crushed . | . . . . . Highest Temperature 206 | . . . . 206 Average Temperature 55 | . . . . 55 Received Heat Transfer 933 | . . . . 933 Siege Activations . | . . . . . Martial Activations . | . . . . . Shielding Activations . | . . . . . Robots Disrupted . | . . . . . Combat Hostiles . | . . . . . Robots Corrupted . | . . . . . Combat Hostiles . | . . . . . Parts Fried . | . . . . . Impact Corruptions . | . . . . . Robots Melted . | . . . . . Combat Hostiles . | . . . . . Parts Melted 2 | . . . . 2 Heat Transferred 1783 | . . . . 1783 Parts Sabotaged . | . . . . . Parts Stolen . | . . . . . Parts Stripped . | . . . . . Power Chain Reactions 2 | . . . . 2 Alert | -11 -10 -10 -9 -6 ------- Run | Yrd Mat Sub Scr Fac Maximum Alert Level . | . . . . . Low Security (%) 100 | 100 100 . . 100 Level 1 . | . . . . . Level 2 . | . . . . . Level 3 . | . . . . . Level 4 . | . . . . . Level 5 . | . . . . . High Security . | . . . . . Max Security . | . . . . . Peak Influence 116 | . . . . 116 Initial . | . . . . . Average 21 | . . . . 28 Influence Increases 316 | . . . . 316 Destroy 0b10 Robot/C 200 | . . . . 200 Destroy 0b10 Robot/NC 5 | . . . . 5 Destroy Leader 40 | . . . . 40 Disable Machine 27 | . . . . 27 Destroy Structure 29 | . . . . 29 Lose Combat Pursuer 15 | . . . . 15 Influence Decreases 296 | . . . . 296 Time Decay 195 | . . . . 195 Lost Part 101 | . . . . 101 Squads Dispatched 2 | . . . . 2 Investigation . | . . . . . Extermination 1 | . . . . 1 Reinforcement 1 | . . . . 1 Assault . | . . . . . Garrison . | . . . . . Intercept . | . . . . . Searches Triggered . | . . . . . Construction Impeded 1 | . . . . 1 Haulers Reinforced . | . . . . . Active Scanning Responses . | . . . . . Cargo Convoy Interrupts . | . . . . . Stealth | -11 -10 -10 -9 -6 --------- Run | Yrd Mat Sub Scr Fac Distress Signals 1 | . 1 . . . Communications Jammed . | . . . . . Distress Signals . | . . . . . Times Spotted 15 | . 1 . . 14 Peak Tracking Total 5 | . 1 . . 5 Tactical Retreats 1 | . . . . 1 Traps | -11 -10 -10 -9 -6 ------- Run | Yrd Mat Sub Scr Fac Traps Triggered . | . . . . . Indirectly . | . . . . . Trap Hack Attempts . | . . . . . Triggered . | . . . . . Disarmed . | . . . . . Reprogrammed . | . . . . . Reused . | . . . . . Traps Extracted . | . . . . . Installed . | . . . . . Triggered . | . . . . . Machines | -11 -10 -10 -9 -6 ---------- Run | Yrd Mat Sub Scr Fac Machines Disabled 3 | . . . . 3 Max in Single Turn 2 | . . . . 2 Machines Repaired . | . . . . . Machines Dismantled . | . . . . . Machines Sabotaged . | . . . . . Overloaded Fab Kills . | . . . . . Hacking | -11 -10 -10 -9 -6 --------- Run | Yrd Mat Sub Scr Fac Machines Accessed 4 | . . . 1 3 Terminals . | . . . . . Fabricators 1 | . . . . 1 Repair Stations . | . . . . . Recycling Units 2 | . . . . 2 Scanalyzers . | . . . . . Garrison Access . | . . . . . Total Hacks 9 | . . . 4 5 Successful 6 | . . . 4 2 Failed 3 | . . . . 3 Catastrophic . | . . . . . Database Lockouts . | . . . . . Manual . | . . . . . Terminals . | . . . . . Fabricators 2 | . . . . 2 Repair Stations . | . . . . . Recycling Units 3 | . . . . 3 Scanalyzers . | . . . . . Garrison Access . | . . . . . Terminal Hacks 4 | . . . 4 . Record 4 | . . . 4 . Fabricator Hacks 1 | . . . . 1 Network Status 1 | . . . . 1 Repair Station Hacks . | . . . . . Recycling Unit Hacks 1 | . . . . 1 Report Inventory 1 | . . . . 1 Scanalyzer . | . . . . . Garrison Access Hacks . | . . . . . Unauthorized Hacks . | . . . . . Terminals . | . . . . . Fabricators . | . . . . . Repair Stations . | . . . . . Recycling Units . | . . . . . Scanalyzers . | . . . . . Garrison Access . | . . . . . Data Cores Recovered . | . . . . . Used . | . . . . . Hacking Detections 2 | . . . . 2 Full Trace Events . | . . . . . Feedback Events . | . . . . . Feedback Blocked . | . . . . . Robot Schematics Acquired . | . . . . . Robots Built . | . . . . . Authchips . | . . . . . Time . | . . . . . Total Robot Build Rating . | . . . . . Part Schematics Acquired . | . . . . . Parts Built . | . . . . . Authchips . | . . . . . Time . | . . . . . Total Part Build Rating . | . . . . . Parts Repaired . | . . . . . Time . | . . . . . Parts Recycled . | . . . . . Recycled Matter . | . . . . . Retrieved Matter . | . . . . . Retrieved Components . | . . . . . Parts Scanalyzed . | . . . . . Part Schematics Acquired . | . . . . . Parts Damaged . | . . . . . Bothacking | -11 -10 -10 -9 -6 ------------ Run | Yrd Mat Sub Scr Fac Used RIF Installer . | . . . . . Robots Hacked . | . . . . . Non-combat . | . . . . . Combat . | . . . . . Robot Hacks Applied . | . . . . . Relay Couplers Released . | . . . . . Fabnet Peak Effective % . | . . . . . Robots Rewired . | . . . . . Allies Hacked . | . . . . . Hacks Repelled . | . . . . . Allies | -11 -10 -10 -9 -6 -------- Run | Yrd Mat Sub Scr Fac Total Allies . | . . . . . Largest Group . | . . . . . Highest-Rated Group . | . . . . . Highest-Rated Ally . | . . . . . Total Orders . | . . . . . Ally Attacks . | . . . . . Total Damage . | . . . . . Kills . | . . . . . Allies Corrupted . | . . . . . Allies Melted . | . . . . . Intel | -11 -10 -10 -9 -6 ------- Run | Yrd Mat Sub Scr Fac Active Infowar (turns) 150 | . . . . 150 IFF 128 | . . . . 128 Structural 22 | . . . . 22 Robot Analysis Total . | . . . . . Derelict Logs Recovered . | . . . . . Drone Launches . | . . . . . Drone Recoveries . | . . . . . Exploration | -11 -10 -10 -9 -6 ------------- Run | Yrd Mat Sub Scr Fac Turns Passed 1836 | 46 154 20 969 647 Spaces Moved 1362 | 40 115 17 805 385 Core 166 | 19 . . . 147 Treads . | . . . . . Legs 1196 | 21 115 17 805 238 Wheels . | . . . . . Hover . | . . . . . Flight . | . . . . . Fastest Speed 50 | 50 120 120 120 50 Average Speed 117 | 86 120 120 120 114 Slowest Speed 200 | 120 120 120 120 200 Overloaded Moves . | . . . . . Propulsion Burnouts . | . . . . . Robots Hopped . | . . . . . Potential Cave-ins . | . . . . . Cave-ins Triggered . | . . . . . Exploration Rate (%) 20 | 3 22 3 59 14 Regions Visited 4 Branch Regions 2 Pre-discovered Areas . | . . . . . Known Exits Taken . | . . . . . Unknown Exits Taken 4 | 1 1 1 1 . Scrap Searched . | . . . . . Spaces Dug 1 | . . . . 1 Terrain Destroyed 35 | . . . . 35 Melee 1 | . . . . 1 Projectile 2 | . . . . 2 AOE 32 | . . . . 32 Terrain Rammed . | . . . . . Walls Destroyed . | . . . . . Machines Disabled . | . . . . . Actions | -11 -10 -10 -9 -6 --------- Run | Yrd Mat Sub Scr Fac Total 1503 | 50 131 16 808 498 Wait 24 | . 7 . . 17 Move 1358 | 39 114 16 804 385 Hop . | . . . . . Pick Up 25 | 5 6 . 1 13 Fast Attach 8 | 2 . . 1 5 Attach 20 | 4 . . . 16 Detach 7 | . . . 2 5 Swap 4 | . 2 . . 2 Drop 5 | . 2 . . 3 Fire 47 | . . . . 47 Melee 5 | . . . . 5 Ram . | . . . . . Kick . | . . . . . Crush . | . . . . . Escape Stasis . | . . . . . Rewire . | . . . . . Trap . | . . . . . Miscellaneous . | . . . . . Route ------- -11/Scrapyard -10/Materials (discovered 3 exits: [*Mat] / [*Min] / [*Sub]) -10/Subcaves -9/Scraptown -6/Factory History --------- Turn | Location | Event 4 | -11/Scrapyard | Discovered new exit (range 16) 47 | -11/Scrapyard | Entered Materials 48 | -10/Materials | Met a group of wandering Federalists 108 | -10/Materials | Discovered new exit (range 8) 170 | -10/Materials | Discovered new exit (range 16) 186 | -10/Materials | Discovered new exit (range 10) 201 | -10/Materials | Entered Subcaves 201 | -10/Subcaves | Accompanied by 3 allies 202 | -10/Subcaves | Continued accompanying wandering Federalists (6) 202 | -10/Subcaves | Approached by a straggling Scientist 208 | -10/Subcaves | Shifting Twisted Machinery released Spk. Treads 211 | -10/Subcaves | Scientist uncovered a shortcut to Scraptown 221 | -10/Subcaves | Entered Scraptown 301 | -9/Scraptown | Build established: Mutant 440 | -9/Scraptown | Discovered new exit (range 7) 528 | -9/Scraptown | Visited IN-MT5's Study 615 | -9/Scraptown | Visited UFD Registry 615 | -9/Scraptown | Registered with UFD as "Megahead" 905 | -9/Scraptown | Visited Symbiants 956 | -9/Scraptown | Visited Junk Repository 981 | -9/Scraptown | Visited Assassins FH 1037 | -9/Scraptown | Visited Red Mages 1102 | -9/Scraptown | Visited Comm Corps 1190 | -9/Scraptown | Entered Factory 1190 | -6/Factory | Evolved 8 slots: Power x1, Propulsion x3, Utility x3, Weapon x1 1411 | -6/Factory | Lost 4 parts (1n1u2w) 1429 | -6/Factory | Spotted B-75 Beast 1616 | -6/Factory | Core integrity fell below 50% 1651 | -6/Factory | Lost 11 parts (2p3n2u4w) 1733 | -6/Factory | Core integrity fell below 20% 1837 | -6/Factory | Destroyed by H-66 Slayer with Gauss Rifle Last Messages --------------- 01755_ Acquired Maul. 01763_ Acquired Lgt. Deuterium Engine. 01765_ JFQR%JW0IBRR:0H1J=>:|SNL9LYA% 01772_ K-01 Serf cleans the Pressure Siphon. 01780_ K-01 Serf cleans the Nuclear Reactor. 01783_ K-01 Serf cleans the Pressure Siphon. 01796_ Penetrated by Slug. 01805_ Lgt. Deuterium Engine destroyed. 01805_ Penetrated by Slug. 01813_ Acquired 21 matter. 01813_ Acquired 49 matter. 01815_ Acquired Structural Scanner. 01830_ K-01 Serf cleans the Terminal. 01831_ G-50 Soldier destroyed. 01831_ K-01 Serf collects debris. 01834_ Acquired 10 matter. 01834_ K-01 Serf cleans the Terminal. 01834_ K-01 Serf collects debris. 01837_ K-01 Serf cleans the Terminal. 01837_ Slug penetrates Wall. Map ----- +----------------------------------------------------+ | ?????????????????????????????????# #?????????????? | | ?????????????????????????????????# #?????????????? | | ??????????????????????????######## ###???????????? | | ??????????????????????????# ^ #???????????? | | ??????????????????????????# #???????????? | | ???????????????????######## ^ """ +???????????? | | ???????????????????# # """ #???????????? | | ????? ?? ??????????# """" # """ #???????????? | | ????# ?? #?????????# """" # ####????##### | | ????# ?# ##????????# """" + " " #????# | | ????# #! #????????# """" # "Y" ###### ! | | ????# # ?????##### # """ | | ????# # ! ?????############! ###### ! | | ????# #????### # #% #????# | | ????# #????# # # #########????##### | | ????# #????# # #%! #######????????????????? | | ????# #????# # ## ## #????????????????????? | | ????# #???#### ## # ######????????????????? | | ????# ###### # ##k####### ????????????????? | | ????# # !! #* |%=# + ????????????????? | | ????# # ! ! =# #% # ????????????????? | | ##### # ! #*% + # ????????????????? | | " # # ## ????????????????? | | ######## # "= ! # ##?????????????????? | | ???????# # # ! #k %* ##?????????????????? | | ???????# ####+######### @######?????????????????? | | ???????# ### ## ######?????????????????? | | ######## #???????????## ##?????????????????????? | | ## #???????????## ##?????????????????????? | | ## #?????????? # #?????????????????????? | | ## #??????????## T ??????????????????????? | | ## #????????? "" ?????????????????????? | | ## #?????????###k ] ???????????????????? | | ## #?????????### k ###???????????????????? | | ## #??????????#### #####???????????????????? | | ## #??????????#### ## ????????????????????? | | ## #????????????## ????????????????????????? | | ######## #?????????????? ????????????????????????? | | ???????# #?????????????? ????????????????????????? | | ########!#??????????????A????????????????????????? | | *#?????????????? ????????????????????????? | | ######## #???????????????????????????????????????? | | ???????# #???????????????????????????????????????? | | ???????# #???????????????????????????????????????? | | ???????# #???????????????????????????????????????? | | ########+##??????????????????????????????????????? | | #??????????????????????????????????????? | | #??????????????????????????????????????? | | #??????????????????????????????????????? | | #??????????????????????????????????????? | +----------------------------------------------------+ Best States ------------- Heat Dissipation 56 Energy Generation 23 Energy Capacity 400 Matter Stores 300 Matter Capacity 300 Sight Range 16 Terrain Scan Density 10 Armor Coverage 225 Resistance: KI 20 Resistance: TH 20 Resistance: EX 20 Resistance: EM 20 Resistance: I 20 Resistance: S 20 Resistance: P 20 Evasion (%) 55 Offensive Hacking 10 Defensive Hacking 10 Item Schematics ----------------- None Robot Schematics ------------------ None Fabricated ------------ Nothing Repaired ---------- Nothing Alien Tech Used ----------------- None Achievements -------------- None Challenges ------------ None Game ------ Seed SniperExpertFalx Manual? 0 Play Time 00:23:18 Cumulative 297.9 hours Start 2025.05.06 @ 17:04:11 End 2025.05.06 @ 17:25:51 Sessions 1 Manual Loads 0 Difficulty Adventurer Special Mode None Game No. 244 Rogue 0 Adventurer 181 Explorer 63 Win Type - Total 0 Types 0/0/0/0/0/0/0/0/0/0 Lore% 44 Gallery% 58 Achievement% 52 Wizard Run 0 Options --------- Layout 0 ASCII 0 Keyboard 0 Movement Mouse Keybinds 0 Fullscreen 1 Font 24/Smallcaps Map View 76x50 Zoom Use 0% Tactical HUD 1 Map Filters NONE Filters NONE Steam 1 RUN: 75bce99a-f119-4a42-bb5e-8a609e69b8e2